bitfinex/quotes_ETHUSD_20240811
["timestamp","ask_amount","ask_price","bid_price","bid_amount"]
[1723407189454,5.45908,2564.6,2564.2,8.2074]
[1723407189651,2.72957,2564.5,2564.2,8.2074]
[1723407189851,2.72951,2564.6,2564.2,8.2074]
[1723407190095,2.72932,2564.8,2564.3,0.07798191]
[1723407190390,2.72909,2565.0,2564.2,10.93723]
[1723407190594,2.75920473,2565.3,2564.2,8.2074]
[1723407190792,2.75920473,2565.3,2564.2,10.93728]
[1723407190793,2.72932,2564.8,2564.2,10.93728]
[1723407191082,2.72921,2564.9,2564.2,10.93721]
[1723407191292,2.72949,2564.6,2564.2,8.2074]
[1723407192293,2.72931,2564.8,2564.2,8.2074]
[1723407192650,5.45865,2564.8,2564.2,8.2074]
[1723407192858,2.72939,2564.7,2564.2,8.2074]
[1723407193186,2.72931,2564.8,2564.2,8.2074]
[1723407193486,2.72936,2564.7,2564.2,8.2074]
[1723407193703,2.72908,2565.0,2564.2,8.2074]
[1723407194058,5.45735,2565.4,2564.7,2.72934]
[1723407194354,2.72879,2565.3,2564.6,2.72946]
[1723407194551,2.72879,2565.3,2564.6,0.545898]
[1723407194784,2.72879,2565.3,2564.6,2.72946]
[1723407194993,5.45761,2565.3,2564.6,2.72946]
[1723407195229,2.72853,2565.5,2564.3,2.72976]
[1723407195518,2.72853,2565.5,2564.8,2.72924]
[1723407195684,5.45712,2565.5,2564.9,0.07795873]
[1723407195880,0.61076667,2566.2,2565.2,2.72876]
[1723407196148,2.72822,2565.8,2565.1,2.72893]
[1723407196404,2.72822,2565.8,2565.0,10.80339]
[1723407196405,2.72865,2565.4,2565.0,8.0744]
[1723407196606,0.03045473,2565.7,2564.6,8.0744]
[1723407196607,2.72907,2565.0,2564.6,8.0744]
[1723407196811,2.7293,2564.8,2564.6,8.0744]
[1723407197008,2.72822,2565.8,2564.6,8.0744]
[1723407197009,0.61076667,2566.2,2566.0,8.0744]
[1723407197211,2.72732,2566.7,2566.1,0.07792558]
[1723407197387,0.61061989,2566.3,2566.1,0.07792558]
[1723407197711,2.72713,2566.8,2566.1,0.07792592]
[1723407198010,2.72692,2567.0,2566.1,2.80572592]
[1723407198208,2.72692,2567.0,2566.0,8.0744]
[1723407198209,0.61049916,2567.1,2566.0,8.0744]
[1723407198406,2.72697,2567.0,2566.2,0.07791445]
[1723407198621,2.72679,2567.2,2566.4,2.72748]
[1723407198905,2.72679,2567.2,2566.5,0.07791294]
[1723407199115,2.72651,2567.4,2566.4,2.7275]
[1723407199282,0.03045473,2567.3,2566.0,8.0744]
[1723407199483,5.45506,2566.5,2566.0,8.0744]
[1723407199694,2.75750473,2566.9,2566.0,8.0744]
[1723407199995,0.03045473,2567.4,2566.2,2.72768]
[1723407200198,0.03045473,2567.3,2566.2,2.72768]
[1723407200405,2.72698,2567.0,2566.3,0.07791222]
[1723407200588,2.72698,2567.0,2566.3,2.80554222]
[1723407200904,0.6104434,2567.5,2566.3,0.07791222]
[1723407201115,2.72651,2567.4,2566.6,2.72725]
[1723407201283,2.72651,2567.4,2566.7,0.07790585]
[1723407201467,2.72663,2567.3,2566.8,8.15230583]
[1723407201671,2.72678,2567.2,2566.8,8.0744]
[1723407201868,2.72668,2567.3,2566.9,0.07790596]
[1723407202172,0.6103345,2567.7,2566.9,0.07790596]
[1723407202173,2.72633,2567.6,2566.9,0.07790596]
[1723407202373,0.6103345,2567.7,2567.0,2.72682]
[1723407202610,3.3365745,2567.7,2567.1,0.07789098]
[1723407202810,0.03045473,2568.1,2567.2,8.0744]
[1723407203013,2.72688,2567.1,2566.5,8.0744]
[1723407203216,2.72591,2568.0,2566.5,8.0744]
[1723407203217,2.72665,2567.3,2566.5,10.80184]
[1723407203515,2.72665,2567.3,2565.7,3.0]
[1723407203516,7.851,2567.5,2565.7,8.0744]
[1723407203732,2.72833,2565.7,2565.2,8.0744]
[1723407203891,2.7281,2565.9,2565.2,8.0744]
[1723407204223,2.72794,2566.1,2565.2,9.154726]
[1723407204510,2.72794,2566.1,2565.2,11.883516]
[1723407204818,2.72794,2566.1,2565.2,11.883476]
[1723407204999,2.72784,2566.2,2565.4,2.72853]
[1723407205199,2.72784,2566.2,2565.2,13.53189]
[1723407205200,2.72799,2566.0,2565.2,13.53189]
[1723407205384,2.72799,2566.0,2565.2,12.156329]
[1723407205589,2.72815,2565.9,2565.2,10.80314]
[1723407205829,2.72831,2565.7,2565.2,8.0744]
[1723407205981,2.7276,2566.4,2565.2,8.0744]
[1723407205982,2.72868,2565.4,2565.2,8.0744]
[1723407206179,2.72874,2565.3,2564.7,8.0744]
[1723407206920,10.47872,2566.3,2564.8,0.07797164]
[1723407206921,2.72816,2565.9,2564.8,0.07797164]
[1723407207123,2.72869,2565.4,2564.7,2.72927]
[1723407207454,2.72824,2565.8,2565.0,2.72895]
[1723407207627,2.72815,2565.9,2565.1,10.881213]
[1723407207780,3.0,2566.4,2565.1,8.152353]
[1723407207781,0.03045473,2566.3,2565.1,8.152353]
[1723407207976,5.72758,2566.4,2565.2,0.07795411]
[1723407207977,2.72816,2565.9,2565.2,0.07795411]
[1723407208183,2.72791,2566.1,2565.3,2.8066666]
[1723407208413,0.03045473,2566.3,2565.1,8.0744]
[1723407208620,0.03045473,2566.3,2565.2,0.07794707]
[1723407208929,5.45589,2566.1,2565.3,2.80663704]
[1723407209133,5.45589,2566.1,2565.2,2.72873]
[1723407209134,2.728,2566.0,2565.2,2.72873]
[1723407209282,2.7277,2566.3,2565.4,0.07794706]
[1723407209481,2.72791,2566.1,2565.4,2.80647706]
[1723407209779,2.7277,2566.3,2565.1,8.0744]
[1723407209780,2.72856,2565.5,2565.1,8.0744]
[1723407209989,5.45715,2565.5,2565.1,8.0744]
[1723407210316,2.72831,2565.7,2565.2,0.0779571]
[1723407210635,14.4792317,2566.9,2565.2,2.8067171]
[1723407210636,2.72813,2565.9,2565.2,2.8067171]
[1723407210782,2.72826,2565.8,2565.1,8.0744]
[1723407210988,2.72847,2565.6,2565.1,8.0744]
[1723407211258,2.72853,2565.5,2565.1,8.0744]
[1723407212366,2.72864,2565.4,2565.1,8.0744]
[1723407212563,2.7274,2566.6,2565.1,8.0744]
[1723407212564,3.62418021,2566.6,2565.1,8.0744]
[1723407212770,2.72786,2566.2,2565.2,0.07795915]
[1723407212955,2.72816,2565.9,2565.1,10.80327]
[1723407213325,2.72834,2565.7,2565.1,8.0744]
[1723407213566,2.75864473,2565.8,2565.1,8.0744]
[1723407213731,2.72837,2565.7,2565.1,8.0744]
[1723407213944,2.72858,2565.5,2565.1,8.0744]
[1723407214154,2.72843,2565.6,2565.1,8.0744]
[1723407214540,2.72841,2565.6,2565.1,8.0744]
[1723407214853,2.72853,2565.5,2565.1,8.0744]
[1723407215079,2.72841,2565.6,2565.1,8.0744]
[1723407215800,2.7288,2565.3,2564.6,8.1292]
[1723407216006,2.72801,2566.0,2564.6,8.1292]
[1723407216007,2.72844,2565.6,2564.6,8.1292]
[1723407216157,2.72904,2565.0,2564.6,8.1292]
[1723407216494,2.72846,2565.6,2564.7,2.72936]
[1723407216700,2.72862,2565.4,2564.7,2.72936]
[1723407216989,2.72862,2565.4,2564.7,2.72929]
[1723407217161,2.72862,2565.4,2564.6,8.1292]
[1723407217162,2.72889,2565.2,2564.6,8.1292]
[1723407217371,2.72911,2565.0,2564.6,8.1292]
[1723407217553,2.72846,2565.6,2564.7,0.07797003]
[1723407217758,2.72823,2565.8,2565.0,2.72902]
[1723407217956,2.72839,2565.7,2565.1,0.07795511]
[1723407218269,2.72801,2566.0,2565.1,0.63155962]
[1723407218596,5.45584,2566.1,2565.5,8.1292]
[1723407218770,2.72798,2566.0,2565.6,0.07794183]
[1723407219092,2.72788,2566.1,2565.5,8.1292]
[1723407219463,2.7277,2566.3,2565.5,8.1292]
[1723407219464,2.7277,2566.3,2565.6,0.07794011]
[1723407219662,0.40419237,2566.4,2565.5,8.1292]
[1723407219964,0.40419237,2566.4,2565.6,0.0779395]
[1723407219965,2.72773,2566.3,2565.6,0.0779395]
[1723407220179,2.7279,2566.1,2565.5,8.1292]
[1723407220386,2.72767,2566.3,2565.6,2.8062695]
[1723407220605,2.72767,2566.3,2565.7,2.7282]
[1723407220606,2.72766,2566.3,2565.7,2.7282]
[1723407220811,2.72788,2566.1,2565.8,0.07793463]
[1723407220957,2.72788,2566.1,2565.5,9.21498]
[1723407221159,2.728,2566.0,2565.5,9.21498]
[1723407221360,2.72772,2566.3,2565.5,8.1292]
[1723407221559,2.72781,2566.2,2565.6,0.0779395]
[1723407222155,2.72771,2566.3,2565.6,2.7284]
[1723407222360,2.72783,2566.2,2565.5,10.85769]
[1723407222656,2.72789,2566.1,2565.5,8.1292]
[1723407222869,2.72768,2566.3,2565.6,0.07793955]
[1723407223159,2.72768,2566.3,2565.6,1.4443455]
[1723407223360,2.72768,2566.3,2565.6,1.36640595]
[1723407223583,5.48543473,2566.5,2565.7,2.72823]
[1723407223782,2.72756,2566.4,2565.8,0.07793497]
[1723407223988,0.40420196,2566.9,2565.9,2.728]
[1723407224190,2.72747,2566.5,2565.7,3.36038081]
[1723407224408,2.72795,2566.1,2565.5,8.1292]
[1723407224704,2.72805,2566.0,2565.5,8.1292]
[1723407224904,2.72798,2566.1,2565.5,8.1292]
[1723407225196,2.7277,2566.3,2565.5,8.1292]
[1723407225363,2.72794,2566.1,2565.5,8.1292]
[1723407225765,2.72771,2566.3,2565.5,8.1292]
[1723407225974,2.72771,2566.3,2565.6,2.80623937]
[1723407225975,5.45545,2566.3,2565.6,2.80623937]
[1723407226248,2.72771,2566.3,2565.6,2.80623937]
[1723407226503,2.72775,2566.3,2565.5,11.67054]
[1723407226719,2.72776,2566.2,2565.5,11.67056]
[1723407227006,2.7276,2566.4,2565.7,2.72821]
[1723407227307,2.72736,2566.6,2565.9,2.72801]
[1723407227510,2.72751,2566.5,2565.6,0.82934547]
[1723407227801,2.72736,2566.6,2565.7,2.80614557]
[1723407227802,5.45478,2566.6,2565.7,2.80614557]
[1723407227962,5.45478,2566.6,2565.9,2.72808]
[1723407227963,2.72746,2566.5,2565.9,2.72808]
[1723407228162,2.72729,2566.7,2566.0,0.07792996]
[1723407228389,3.62865739,2567.0,2566.2,2.72776]
[1723407228390,2.72713,2566.8,2566.2,2.72776]
[1723407228596,2.72725,2566.7,2566.3,0.0779228]
[1723407229466,0.40435651,2567.1,2566.6,2.72734]
[1723407229696,0.40435651,2567.1,2566.9,2.72698]
[1723407229878,2.72623,2567.7,2567.1,7.9]
[1723407230085,2.72623,2567.7,2567.2,0.07789275]
[1723407230278,0.6103302,2567.9,2567.3,0.07789082]
[1723407230465,2.72493,2568.9,2567.1,7.9]
[1723407230466,2.72558,2568.3,2567.1,7.9]
[1723407230697,2.72657,2567.4,2567.1,7.9]
[1723407230868,2.72646,2567.5,2566.8,2.72709]
[1723407231071,0.03045473,2567.8,2566.7,7.9]
[1723407231427,0.03045473,2567.8,2566.1,7.9]
[1723407231428,2.7272,2566.8,2566.1,7.9]
[1723407231592,2.72752,2566.5,2566.1,7.9]
[1723407231910,5.45462,2566.7,2566.1,7.9]
[1723407232273,2.72641,2567.5,2566.1,8.962797]
[1723407232274,2.75732473,2567.1,2566.1,8.962797]
[1723407232522,2.72687,2567.1,2566.2,2.72766]
[1723407232720,2.7271,2566.9,2566.2,2.72766]
[1723407233016,2.72703,2566.9,2566.2,2.72766]
[1723407233171,2.72703,2566.9,2566.2,5.45535]
[1723407233372,2.72703,2566.9,2566.2,2.72766]
[1723407233929,2.72703,2566.9,2566.2,5.45536]
[1723407234313,2.72703,2566.9,2566.2,2.72766]
[1723407234839,5.45414,2566.9,2566.2,2.72766]
[1723407235013,2.72703,2566.9,2566.2,2.72766]
[1723407235414,2.75743473,2567.0,2566.3,2.72765]
[1723407235722,0.3899,2569.3,2566.8,11.775]
[1723407236029,2.35851478,2570.7,2566.8,11.775]
[1723407236030,3.62793216,2570.8,2570.4,2.7233]
[1723407236212,0.01366774,2571.7,2570.5,2.72319]
[1723407236413,0.01366774,2571.7,2570.9,2.72276]
[1723407236656,0.01366774,2571.7,2570.3,2.72336]
[1723407236657,2.72249,2571.2,2570.3,2.72336]
[1723407236839,0.272249,2571.1,2570.2,2.72349]
[1723407237152,2.72226,2571.4,2570.0,7.9]
[1723407237461,0.01366774,2571.7,2570.5,2.72319]
[1723407237663,2.73561774,2571.7,2570.8,2.72287]
[1723407237817,0.28592094,2571.6,2570.8,2.72287]
[1723407238017,0.28592094,2571.6,2570.8,0.07778721]
[1723407238218,0.01366774,2571.7,2570.4,5.14352349]
[1723407238517,0.01366774,2571.7,2570.9,2.72277]
[1723407238754,0.01366774,2571.7,2570.5,0.62777769]
[1723407238755,0.01366774,2571.7,2571.0,0.07777601]
[1723407239050,2.73568774,2571.7,2571.0,0.07777601]
[1723407239254,0.28592794,2571.6,2571.1,0.07777194]
[1723407239426,0.01366774,2571.7,2571.1,0.07777194]
[1723407239628,0.01366774,2571.7,2571.3,2.72235]
[1723407239952,0.01366774,2571.7,2570.6,2.72299]
[1723407239953,2.72202,2571.7,2570.8,2.72288]
[1723407240171,0.28456117,2571.6,2570.8,2.72282]
[1723407240376,0.1235917,2571.8,2571.1,2.7225]
[1723407240651,0.1235917,2571.8,2571.0,2.72266]
[1723407240836,0.1235917,2571.8,2570.4,11.825]
[1723407241040,0.1235917,2571.8,2571.7,2.72193]
[1723407241243,0.1235917,2571.8,2571.7,5.44386]
[1723407241617,0.1235917,2571.8,2571.7,5.52160144]
[1723407242056,2.72011,2573.5,2571.7,5.52160144]
[1723407242057,2.71997,2573.6,2571.8,2.72181]
[1723407242259,2.8427317,2574.4,2572.9,2.72056]
[1723407242463,2.71929,2574.2,2573.2,2.72034]
[1723407242671,2.71929,2574.2,2573.3,0.07771012]
[1723407242826,0.1235917,2574.4,2573.6,2.71992]
[1723407243167,0.1235917,2574.4,2573.9,2.71959]
[1723407243378,0.1235917,2574.4,2574.0,0.07768636]
[1723407243524,0.1235917,2574.4,2573.4,4.23433838]
[1723407243525,2.8427617,2574.4,2573.4,4.23433838]
[1723407243725,2.8427617,2574.4,2573.2,7.9]
[1723407243726,0.28427617,2574.3,2573.2,7.9]
[1723407243956,2.71949,2574.1,2573.3,2.72022]
[1723407244258,2.71931,2574.2,2573.4,0.07770239]
[1723407244630,2.7194,2574.1,2573.4,0.07770239]
[1723407244862,2.71936,2574.2,2573.3,2.72023]
[1723407245106,2.71936,2574.2,2573.2,7.9]
[1723407245107,2.71936,2574.2,2573.4,2.7201]
[1723407245388,0.28426917,2574.3,2573.8,2.71969]
[1723407245608,0.1235917,2574.4,2573.9,0.07768893]
[1723407245909,0.1235917,2574.4,2574.1,2.71935]
[1723407246063,0.1235917,2574.4,2574.2,0.07768046]
[1723407246285,0.1235917,2574.4,2574.3,5.51603071]
[1723407246486,0.1235917,2574.4,2574.3,2.71918]
[1723407246683,0.1235917,2574.4,2574.3,0.07767438]
[1723407246849,0.1235917,2574.4,2573.7,2.71981]
[1723407247064,0.1235917,2574.4,2573.4,3.925]
[1723407247366,0.1235917,2574.4,2573.8,2.71964]
[1723407247687,0.1235917,2574.4,2573.6,2.71988]
[1723407247896,0.1235917,2574.4,2573.4,5.4075]
[1723407248195,0.1235917,2574.4,2573.7,2.71978]
[1723407248363,0.1235917,2574.4,2573.8,0.55]
[1723407248694,0.1235917,2574.4,2574.0,2.71946]
[1723407248896,0.1235917,2574.4,2573.9,2.71959]
[1723407249211,0.1235917,2574.4,2571.8,3.27389014]
[1723407249212,2.72014,2573.4,2572.6,7.6686]
[1723407249357,2.72053,2573.1,2571.9,11.5936]
[1723407249553,3.0,2573.7,2571.9,4.5936]
[1723407249782,2.72014,2573.4,2572.4,2.72118]
[1723407249986,2.72084,2572.8,2571.9,7.31529]
[1723407250155,2.992274,2573.3,2571.5,3.925]
[1723407250156,2.72117,2572.5,2571.5,2.72209]
[1723407250360,2.721,2572.6,2571.1,2.72256]
[1723407250592,2.72109,2572.5,2571.5,2.72214]
[1723407250795,2.72081,2572.8,2571.8,2.72182]
[1723407251000,2.72109,2572.5,2571.6,2.72202]
[1723407251213,2.72155,2572.1,2571.2,2.72241]
[1723407251500,3.0,2572.7,2571.5,2.72206]
[1723407251654,2.72071,2572.9,2571.6,0.34995294]
[1723407251868,7.8231,2573.0,2571.1,2.72253]
[1723407252156,2.72149,2572.2,2571.3,2.72235]
[1723407252356,5.72072,2572.9,2571.5,2.72214]
[1723407252595,2.72155,2572.1,2571.6,0.0777591]
[1723407252799,2.72142,2572.2,2571.6,0.0777591]
[1723407253009,1.08231,2572.8,2571.3,0.07775913]
[1723407253303,1.08231,2572.8,2570.7,10.39152]
[1723407253304,2.72202,2571.7,2570.9,2.72277]
[1723407253459,0.272202,2571.6,2570.8,2.7228]
[1723407253658,2.72204,2571.6,2570.9,0.07777642]
[1723407253972,2.7223,2571.4,2570.6,2.72305]
[1723407254172,2.72165,2572.0,2570.2,2.72348]
[1723407254173,2.72241,2571.3,2570.2,2.72348]
[1723407254361,2.72299,2570.7,2569.6,7.6686]
[1723407254565,2.7228,2570.9,2570.1,2.72354]
[1723407254798,2.7228,2570.9,2570.0,2.72372]
[1723407254799,2.72289,2570.8,2570.0,2.72372]
[1723407255160,2.72317,2570.6,2569.7,2.72395]
[1723407255359,10.54565,2571.2,2569.4,2.72434]
[1723407255360,2.7228,2570.9,2569.4,2.72434]
[1723407255661,2.72243,2571.3,2569.5,6.99949535]
[1723407255862,3.0,2571.6,2570.4,2.72329]
[1723407255863,2.72226,2571.4,2570.4,2.72329]
[1723407256066,7.8231,2571.7,2570.8,2.72279]
[1723407256266,2.72214,2571.5,2570.9,0.07778166]
[1723407256501,1.054507,2571.6,2570.9,2.80055166]
[1723407256701,3.776577,2571.6,2570.9,0.07778166]
[1723407256945,1.4321637,2571.5,2570.9,0.07778166]
[1723407257429,4.1543137,2571.5,2570.9,0.07778166]
[1723407257660,2.72225,2571.4,2570.9,0.07778166]
[1723407258017,4.1543337,2571.5,2570.9,0.07778166]
[1723407258225,7.8231,2572.2,2570.9,0.07778166]
[1723407258388,10.54453,2572.2,2571.4,2.72214]
[1723407258589,7.8231,2572.2,2571.5,2.79982102]
[1723407258793,2.72091,2572.7,2571.6,0.07776102]
[1723407259045,2.72079,2572.8,2571.8,2.72175]
[1723407259195,2.72077,2572.8,2572.1,2.72143]
[1723407259393,2.72077,2572.8,2572.0,2.7216]
[1723407259643,2.72087,2572.7,2571.8,2.72181]
[1723407259794,3.775267,2572.7,2572.0,0.0777421]
[1723407259997,3.775267,2572.7,2571.2,2.72236]
[1723407259998,2.72172,2571.9,2571.2,2.72236]
[1723407260226,2.72103,2572.6,2571.3,2.72235]
[1723407260227,2.72151,2572.1,2571.3,2.72235]
[1723407260436,2.72111,2572.5,2571.5,2.72214]
[1723407260608,2.72119,2572.4,2571.6,0.07775671]
[1723407260803,2.72126,2572.4,2571.6,2.72204]
[1723407261020,2.721,2572.6,2571.7,2.79963922]
[1723407261235,2.7208,2572.8,2571.0,3.925]
[1723407261236,7.8231,2572.9,2571.8,0.0777483]
[1723407261447,2.72079,2572.8,2572.0,2.72153]
[1723407261596,2.72102,2572.6,2571.8,2.72181]
[1723407261794,2.72109,2572.5,2571.6,2.722]
[1723407262098,2.72169,2572.0,2570.7,7.6686]
[1723407262292,2.72151,2572.1,2571.3,2.72225]
[1723407262511,2.72159,2572.1,2571.3,2.72225]
[1723407262691,2.72151,2572.1,2571.4,2.80000521]
[1723407262897,2.993669,2572.1,2571.4,2.80000521]
[1723407263506,8.60541,2572.9,2571.0,3.925]
[1723407263839,2.72123,2572.4,2571.7,2.72185]
[1723407264041,2.72101,2572.6,2571.6,2.72201]
[1723407264206,2.72121,2572.4,2571.8,0.07775191]
[1723407264405,2.72107,2572.6,2571.8,0.07776088]
[1723407264627,0.860541,2572.8,2571.8,0.07776088]
[1723407264810,2.72047,2573.1,2572.3,2.72127]
[1723407265028,2.72021,2573.4,2572.4,0.0777356]
[1723407265336,2.72024,2573.3,2572.5,5.44206]
[1723407265543,2.71986,2573.7,2572.9,2.72065]
[1723407265836,7.8231,2574.0,2572.0,3.925]
[1723407265837,3.773899,2573.9,2573.0,0.07771605]
[1723407265995,2.71975,2573.8,2573.0,2.72048]
[1723407266198,0.28428717,2574.2,2573.6,2.71985]
[1723407266448,0.1235917,2574.4,2573.8,2.71966]
[1723407266648,0.1235917,2574.4,2572.8,2.72074]
[1723407266649,2.7194,2574.1,2573.3,2.72015]
[1723407266936,2.71921,2574.3,2573.3,2.72022]
[1723407267145,2.8426917,2574.4,2573.7,2.71979]
[1723407267296,2.8426917,2574.4,2573.4,2.72009]
[1723407267297,0.1235917,2574.4,2573.4,2.72009]
[1723407267493,2.71938,2574.2,2573.4,2.72003]
[1723407267964,0.1235917,2574.4,2574.3,8.15754]
[1723407268119,7.8231,2576.6,2575.5,2.71791]
[1723407268313,3.53975454,2576.4,2575.6,0.07763195]
[1723407268559,7.8231,2576.6,2575.8,2.71759]
[1723407268742,7.9543,2577.2,2575.9,0.07762238]
[1723407268951,0.40363446,2577.7,2576.6,2.71667]
[1723407268952,2.71579,2577.6,2576.6,2.71667]
[1723407269147,1.7e-06,2576.9,2576.8,2.71654]
[1723407269439,1.7e-06,2576.9,2575.9,3.0]
[1723407269752,1.7e-06,2576.9,2576.0,0.55]
[1723407270067,1.7e-06,2576.9,2575.8,3.925]
[1723407270231,2.71666,2576.7,2575.9,2.71749]
[1723407270438,1.7e-06,2576.9,2576.1,2.71724]
[1723407270637,2.71665,2576.7,2575.9,2.71747]
[1723407270847,0.27166517,2576.7,2575.9,2.71746]
[1723407271052,2.75190379,2576.6,2575.7,2.7177]
[1723407271261,2.75190379,2576.6,2575.0,2.71835]
[1723407271262,2.71762,2575.8,2575.0,2.71841]
[1723407271571,2.71762,2575.8,2574.3,3.925]
[1723407271572,0.03417333,2575.7,2575.1,2.71833]
[1723407271860,2.71739,2576.0,2574.8,2.71864]
[1723407271861,0.79543,2576.0,2574.8,2.71864]
[1723407272164,1.7e-06,2576.9,2575.0,11.16656]
[1723407272466,0.0346588,2575.9,2575.2,2.71822]
[1723407272666,2.71688,2576.5,2575.5,2.71788]
[1723407272956,3.29538795,2576.4,2575.6,0.0776379]
[1723407273178,2.75202295,2576.4,2575.6,2.7954279]
[1723407273322,0.03504295,2576.4,2575.6,0.0776379]
[1723407273520,1.7e-06,2576.9,2575.7,0.07763593]
[1723407273764,2.7174,2576.0,2574.9,2.71851]
[1723407274053,8.08954029,2576.8,2574.1,8.4482]
[1723407274054,2.71781,2575.6,2574.8,2.71864]
[1723407274423,0.03429037,2575.5,2574.8,2.71864]
[1723407274624,2.75231037,2575.5,2574.6,2.71886]
[1723407274827,2.75231037,2575.5,2573.3,2.72021]
[1723407274828,0.03429037,2575.5,2574.2,2.71926]
[1723407275083,0.03429037,2575.5,2573.6,8.4482]
[1723407275084,0.27523104,2575.4,2574.3,0.07767583]
[1723407275283,0.03429037,2575.5,2574.5,2.71893]
[1723407275449,2.71823,2575.2,2574.5,2.71893]
[1723407275779,2.71807,2575.4,2574.5,2.71893]
[1723407275928,10.9543,2575.8,2574.4,2.71905]
[1723407276132,4.13229554,2575.7,2574.2,2.71925]
[1723407276333,2.71835,2575.1,2574.2,2.71925]
[1723407276629,4.13229554,2575.7,2574.4,2.71906]
[1723407276630,2.71824,2575.2,2574.4,2.71906]
[1723407276829,2.990184,2575.1,2574.1,2.71938]
[1723407277059,2.990184,2575.1,2573.6,8.4482]
[1723407277060,2.71836,2575.1,2574.2,2.71928]
[1723407277238,0.03684139,2575.0,2574.2,2.71927]
[1723407277462,3.03081153,2575.0,2574.2,2.71927]
[1723407277787,3.03081153,2575.0,2574.1,2.71938]
[1723407277959,3.03081153,2575.0,2573.7,2.71977]
[1723407277960,2.71884,2574.7,2573.7,2.71977]
[1723407278139,2.71908,2574.4,2573.7,2.71977]
[1723407278347,0.03644182,2574.7,2573.4,2.72006]
[1723407278556,10.67286,2574.9,2574.1,2.71938]
[1723407278762,0.03644182,2574.7,2574.1,2.71938]
[1723407278996,0.27552014,2575.0,2574.4,2.71906]
[1723407279181,2.71815,2575.3,2574.4,2.71906]
[1723407279379,7.9543,2575.4,2574.7,2.71875]
[1723407279684,7.9543,2575.4,2574.2,0.07767723]
[1723407279685,7.9543,2575.4,2574.5,0.07766874]
[1723407279971,7.9543,2576.0,2574.8,0.07766877]
[1723407280126,7.9543,2576.0,2574.9,0.07765538]
[1723407280332,7.9543,2576.0,2575.1,2.71831]
[1723407280535,4.371909,2577.3,2574.8,2.71859]
[1723407280536,2.7173,2576.1,2575.3,2.71805]
[1723407280734,2.71717,2576.3,2575.4,0.07764568]
[1723407280938,7.9543,2576.6,2574.6,4.475]
[1723407280939,2.7176,2575.9,2575.0,2.71838]
[1723407281157,2.7174,2576.0,2575.1,2.71823]
[1723407281358,2.71729,2576.1,2575.1,2.71823]
[1723407281558,2.71727,2576.2,2575.3,2.71804]
[1723407281831,2.7174,2576.0,2575.3,2.71804]
[1723407282469,2.5674,2576.0,2575.2,2.71822]
[1723407282655,2.5674,2576.0,2575.3,2.71811]
[1723407282876,2.71771,2575.7,2574.9,2.71854]
[1723407283053,2.71771,2575.7,2574.7,2.71874]
[1723407283245,7.9543,2575.6,2574.7,2.71874]
[1723407283599,2.71793,2575.5,2574.7,2.71874]
[1723407283747,7.9543,2575.6,2574.7,2.71874]
[1723407283947,3.785201,2575.5,2574.7,2.71874]
[1723407284191,1.067201,2575.5,2574.8,2.71864]
[1723407284356,1.067201,2575.5,2574.9,2.71853]
[1723407284557,1.067201,2575.5,2574.7,2.71874]
[1723407284759,1.067201,2575.5,2574.8,2.71865]
[1723407285093,3.785131,2575.5,2574.7,2.71874]
[1723407285670,3.785131,2575.5,2573.9,3.0]
[1723407285671,2.71832,2575.2,2574.3,2.71917]
[1723407285989,2.71847,2575.0,2574.3,2.71909]
[1723407286200,7.9543,2576.1,2574.6,2.71883]
[1723407286541,7.9543,2576.1,2575.0,2.71843]
[1723407286542,2.7178,2575.7,2575.0,2.71843]
[1723407287589,2.7178,2575.7,2574.9,2.71851]
[1723407287775,2.71781,2575.6,2574.8,5.43711]
[1723407287959,2.71792,2575.5,2574.6,2.71882]
[1723407288161,2.71814,2575.3,2574.6,2.71882]
[1723407288504,2.71776,2575.7,2574.9,2.71854]
[1723407288653,2.71792,2575.5,2574.5,5.43785]
[1723407288989,2.71792,2575.5,2574.7,2.71875]
[1723407289191,2.71814,2575.3,2574.7,2.71875]
[1723407289486,2.7184,2575.1,2574.3,2.71909]
[1723407290188,2.71846,2575.0,2574.3,2.71909]
[1723407290694,2.71856,2574.9,2574.1,2.71932]
[1723407290848,2.71856,2574.9,2573.9,2.71958]
[1723407290849,2.71904,2574.5,2573.7,2.71975]
[1723407291189,2.71916,2574.4,2573.7,2.71975]
[1723407291495,2.71904,2574.5,2573.6,2.71992]
[1723407291496,2.71899,2574.5,2573.6,2.71992]
[1723407291801,2.71926,2574.3,2573.5,5.4399]
[1723407292104,2.719,2574.5,2573.8,2.71967]
[1723407292310,2.719,2574.5,2573.4,0.272006]
[1723407292311,12.0747,2575.2,2574.4,2.719]
[1723407292589,9.3564,2575.9,2574.4,2.71904]
[1723407292793,2.71814,2575.3,2574.4,2.719]
[1723407292962,2.71774,2575.7,2575.0,2.71842]
[1723407293165,12.07393,2575.9,2575.1,0.07766131]
[1723407293166,9.3564,2575.9,2575.1,0.07766131]
[1723407293385,2.71787,2575.6,2574.6,2.71884]
[1723407293568,2.71764,2575.8,2574.9,2.71847]
[1723407293764,3.925044,2575.8,2575.1,2.71833]
[1723407293977,2.71782,2575.6,2574.9,2.71847]
[1723407294211,9.3564,2575.9,2575.0,0.07766363]
[1723407294386,9.3564,2575.9,2575.3,2.71803]
[1723407294581,12.0739,2575.9,2575.2,2.71813]
[1723407295138,9.3564,2575.9,2575.4,2.71794]
[1723407295418,2.71762,2575.8,2575.2,2.71821]
[1723407295603,12.0739,2575.9,2575.2,2.71821]
[1723407296120,10.835523,2575.9,2575.3,2.71805]
[1723407296322,2.71784,2575.6,2574.7,2.71876]
[1723407296483,2.7177,2575.8,2574.9,2.71847]
[1723407296817,2.71786,2575.6,2574.8,2.71865]